fUSD/lending_fUSD_20240210
["ID","MTS","AMOUNT","RATE_DAILY","PERIOD"]
[313676813,1707574256011,-500.0,0.00023636,2]
[313676814,1707574256020,-259.4379395,0.00023636,2]
[313676815,1707574256029,-500.0,0.00023636,2]
[313676816,1707574256039,-500.0,0.00023636,2]
[313676817,1707574256048,-150.0,0.00023636,2]
[313676818,1707574256058,-500.0,0.00023636,2]
[313676819,1707574256068,-594.57,0.00023636,2]
[313676820,1707574256077,-500.0,0.00023636,2]
[313676821,1707574256086,-500.0,0.00023636,2]
[313676822,1707574256095,-500.0,0.00023636,2]
[313676823,1707574256104,-500.0,0.00023636,2]
[313676824,1707574256113,-500.0,0.00023636,2]
[313676825,1707574256122,-500.0,0.00023636,2]
[313676826,1707574256131,-500.0,0.00023636,2]
[313676827,1707574256140,-597.9637292,0.00023636,2]
[313676828,1707574256150,-530.39,0.00023636,2]
[313676829,1707574256159,-500.0,0.00023636,2]
[313676830,1707574256169,-500.0,0.00023636,2]
[313676831,1707574256178,-500.0,0.00023636,2]
[313676832,1707574256188,-314.91,0.00023636,2]
[313676833,1707574256197,-500.0,0.00023636,2]
[313676834,1707574256206,-500.0,0.00023636,2]
[313676835,1707574256215,-3260.3,0.00023636,2]
[313676836,1707574256225,-587.09,0.00023636,2]
[313676837,1707574256234,-1101.01,0.00023636,2]
[313676838,1707574256245,-500.0,0.00023636,2]
[313676839,1707574256254,-1350.38,0.00023636,2]
[313676840,1707574256263,-1027.58,0.00023636,2]
[313676841,1707574256272,-163.68497482,0.00023636,2]
[313676842,1707574256281,-500.0,0.00023636,2]
[313676843,1707574256290,-500.0,0.00023636,2]
[313676844,1707574256299,-500.0,0.00023636,2]
[313676845,1707574256308,-500.0,0.00023636,2]
[313676846,1707574256317,-500.0,0.00023636,2]
[313676847,1707574256326,-500.0,0.00023636,2]
[313676848,1707574256335,-500.0,0.00023636,2]
[313676849,1707574256345,-500.0,0.00023636,2]
[313676850,1707574256354,-11125.45,0.00023636,2]
[313676851,1707574256363,-500.0,0.00023636,2]
[313676852,1707574256372,-500.0,0.00023636,2]
[313676853,1707574256381,-500.0,0.00023636,2]
[313676854,1707574256390,-2170.27,0.00023636,2]
[313676855,1707574256399,-500.0,0.00023636,2]
[313676856,1707574256408,-1482.5,0.00023636,2]
[313676857,1707574256417,-1321.31,0.00023636,2]
[313676858,1707574256425,-1437.89,0.00023636,2]
[313676859,1707574256435,-500.0,0.00023636,2]
[313676860,1707574256444,-500.0,0.00023636,2]
[313676861,1707574256454,-989.82,0.00023636,2]
[313676862,1707574256463,-500.0,0.00023636,2]
[313676863,1707574256472,-597.95,0.00023636,2]
[313676864,1707574256481,-1909.18,0.00023636,2]
[313676865,1707574256490,-500.0,0.00023636,2]
[313676866,1707574256500,-589.61,0.00023636,2]
[313676867,1707574256509,-647.12,0.00023636,2]
[313676868,1707574256518,-469.34812837,0.00023636,2]
[313676869,1707574256527,-998.15,0.00023636,5]
[313676870,1707574256537,-2371.12,0.00023636,2]
[313676871,1707574256546,-500.0,0.00023636,2]
[313676872,1707574256555,-1347.24,0.00023636,2]
[313676873,1707574256565,-2054.78,0.00023636,2]
[313676874,1707574256574,-3967.07,0.00023636,2]
[313676875,1707574256584,-1618.29,0.00023636,2]
[313676876,1707574256594,-898.36,0.00023636,2]
[313676877,1707574256603,-1588.29,0.00023636,2]
[313676878,1707574256613,-1247.09,0.00023636,2]
[313676879,1707574256623,-500.0,0.00023636,2]
[313676880,1707574256633,-918.14,0.00023636,2]
[313676881,1707574256643,-2818.91,0.00023636,2]
[313676882,1707574256653,-500.0,0.00023636,2]
[313676883,1707574256663,-2329.93,0.00023636,2]
[313676884,1707574256674,-500.0,0.00023636,2]
[313676885,1707574256684,-585.66331914,0.00023636,2]
[313676886,1707574256694,-1534.72,0.00023636,2]
[313676887,1707574256704,-854.59,0.00023636,2]
[313676888,1707574256714,-500.0,0.00023636,2]
[313676889,1707574256724,-957.2,0.00023636,2]
[313676890,1707574256733,-500.0,0.00023636,2]
[313676891,1707574256742,-716.28,0.00023636,2]
[313676892,1707574256753,-973.69,0.00023636,2]
[313676893,1707574256762,-5653.82,0.00023636,2]
[313676894,1707574256773,-500.0,0.00023636,2]
[313676895,1707574256783,-1623.83,0.00023636,2]
[313676896,1707574256793,-882.22,0.00023636,2]
[313676897,1707574256802,-500.0,0.00023636,2]
[313676898,1707574256812,-729.82,0.00023636,2]
[313676899,1707574256822,-817.33,0.00023636,2]
[313676900,1707574256832,-500.0,0.00023636,2]
[313676901,1707574256842,-1270.18,0.00023636,2]
[313676902,1707574256852,-1668.37,0.00023636,2]
[313676903,1707574256863,-1505.82,0.00023636,2]
[313676904,1707574256876,-500.0,0.00023636,2]
[313676905,1707574256886,-500.0,0.00023636,2]
[313676906,1707574256896,-500.0,0.00023636,2]
[313676907,1707574256906,-500.0,0.00023636,2]
[313676908,1707574256916,-153.44,0.00023768,2]
[313676909,1707574256927,-8302.18,0.00023775,2]
[313676910,1707574256937,-1140.33,0.00023775,2]
[313676911,1707574256947,-8411.1,0.00023775,2]
[313676912,1707574256958,-500.0,0.00023775,2]
[313676913,1707574256968,-500.0,0.00023775,2]
[313676914,1707574256978,-2145.73,0.00023775,2]
[313676915,1707574256988,-853.49,0.00023775,2]
[313676916,1707574256998,-7722.57,0.00023775,2]
[313676917,1707574257008,-500.0,0.00023775,2]
[313676918,1707574257018,-500.0,0.00023775,2]
[313676919,1707574257029,-620.92,0.00023775,2]
[313676920,1707574257038,-586.97,0.00023775,2]
[313676921,1707574257049,-500.0,0.00023775,2]
[313676922,1707574257059,-866.64,0.00023775,2]
[313676923,1707574257069,-913.89,0.00023836,2]
[313676924,1707574257079,-500.0,0.00023909,2]
[313676925,1707574257089,-1723.79,0.00023909,2]
[313676926,1707574257099,-1523.13,0.00023909,2]
[313676927,1707574257109,-11523.32,0.00023909,2]
[313676928,1707574257119,-829.36,0.00023909,2]
[313676929,1707574257129,-500.0,0.00023909,2]
[313676930,1707574257139,-6068.79,0.00023909,2]
[313676931,1707574257149,-500.0,0.00023909,2]
[313676932,1707574257159,-500.0,0.00023909,2]
[313676933,1707574257169,-500.0,0.00023909,2]
[313676934,1707574257179,-583.83,0.00023909,2]
[313676935,1707574257190,-1103.65,0.00023909,2]
[313676936,1707574257200,-2088.97,0.00023909,2]
[313676937,1707574257210,-4410.53,0.00023909,2]
[313676938,1707574257219,-500.0,0.00023909,2]
[313676939,1707574257229,-2300.86,0.00023909,2]
[313676940,1707574257239,-706.48,0.00023909,2]
[313676941,1707574257250,-500.0,0.00023909,2]
[313676942,1707574257259,-1111.1,0.00023909,2]
[313676943,1707574257270,-500.0,0.00023909,2]
[313676944,1707574257279,-500.0,0.00023909,2]
[313676945,1707574257289,-4192.44,0.00023909,2]
[313676946,1707574257299,-500.0,0.00023909,2]
[313676947,1707574257309,-1461.55,0.00023909,2]
[313676948,1707574257320,-1156.45,0.00023909,2]
[313676949,1707574257329,-500.0,0.00023909,2]
[313676950,1707574257339,-500.0,0.00023909,2]
[313676951,1707574257350,-526.96,0.00023909,2]
[313676952,1707574257359,-4621.17,0.00023909,2]
[313676953,1707574257370,-556.98,0.00023909,2]
[313676954,1707574257379,-500.0,0.00023909,2]
[313676955,1707574257389,-8652.9,0.00023909,2]
[313676956,1707574257400,-500.0,0.00023909,2]
[313676957,1707574257410,-500.0,0.00023909,2]
[313676958,1707574257419,-500.0,0.00023909,2]
[313676959,1707574257430,-500.0,0.00023909,2]
[313676960,1707574257440,-1507.4,0.00023909,2]
[313676961,1707574257450,-1344.82,0.00023909,2]
[313676962,1707574257460,-2326.79,0.00023909,2]
[313676963,1707574257470,-500.0,0.00023909,2]
[313676964,1707574257480,-339.54712316,0.00023909,2]
[313676965,1707574257490,-1393.4,0.00023909,2]
[313676966,1707574257500,-1818.92,0.00023909,2]
[313676967,1707574257511,-674.57,0.00023909,2]
[313676968,1707574257521,-2027.14,0.00023909,2]
[313676969,1707574257531,-500.0,0.00023909,2]
[313676970,1707574257541,-930.03,0.00023909,5]
[313676971,1707574257551,-2829.1,0.00023909,2]
[313676972,1707574257562,-1455.5,0.00023909,2]
[313676973,1707574257572,-500.0,0.00023909,2]
[313676974,1707574257582,-500.0,0.00023909,2]
[313676975,1707574257592,-500.0,0.00023909,2]
[313676976,1707574257603,-500.0,0.00023909,2]
[313676977,1707574257613,-1720.68,0.00023909,2]
[313676978,1707574257626,-555.72,0.00023909,2]
[313676979,1707574257640,-3972.0,0.00023909,2]
[313676980,1707574257654,-150.0,0.00023909,2]
[313676981,1707574257668,-2184.99,0.00023909,2]
[313676982,1707574257679,-500.0,0.00023909,2]
[313676983,1707574257693,-1966.35,0.00023909,2]
[313676984,1707574257706,-1817.93,0.00023909,2]
[313676985,1707574257719,-835.04,0.00023909,2]
[313676986,1707574257733,-587.81,0.00023909,2]
[313676987,1707574257746,-3333.4,0.00023909,2]
[313676988,1707574257758,-500.0,0.0002391,2]
[313676989,1707574257770,-500.0,0.0002391,2]
[313676990,1707574257781,-500.0,0.0002391,2]
[313676991,1707574257793,-500.0,0.0002391,2]
[313676992,1707574257805,-613.71,0.0002391,2]
[313676993,1707574257818,-500.0,0.0002391,2]
[313676994,1707574257831,-740.88,0.0002391,2]
[313676995,1707574257844,-500.0,0.0002391,2]
[313676996,1707574257858,-500.0,0.0002391,2]
[313676997,1707574257872,-500.0,0.0002391,2]
[313676998,1707574257884,-500.0,0.0002391,2]
[313676999,1707574257899,-338.05,0.0002391,2]
[313677000,1707574257912,-500.0,0.0002391,2]
[313677001,1707574257925,-625.83344927,0.0002391,2]
[313677002,1707574257937,-500.0,0.0002391,2]
[313677003,1707574257950,-500.0,0.0002391,2]
[313677004,1707574257963,-500.0,0.0002391,2]
[313677005,1707574257976,-500.0,0.0002391,2]
[313677006,1707574257989,-500.0,0.0002391,7]
[313677007,1707574258004,-500.0,0.0002391,2]
[313677008,1707574258015,-1569.64,0.0002391,2]
[313677009,1707574258027,-500.0,0.0002391,2]
[313677010,1707574258041,-500.0,0.0002391,2]
[313677011,1707574258052,-500.0,0.0002391,2]
[313677012,1707574258066,-378.3079806,0.0002391,2]
[313677013,1707574258079,-500.0,0.0002391,2]
[313677014,1707574258090,-500.0,0.0002391,2]
[313677015,1707574258100,-690.69,0.0002391,2]
[313677016,1707574258111,-333.00213533,0.0002391,2]
[313677017,1707574258124,-500.0,0.0002391,2]
[313677018,1707574258136,-725.42,0.0002391,2]
[313677019,1707574258146,-500.0,0.0002391,2]
[313677020,1707574258157,-500.0,0.0002391,2]
[313677021,1707574258169,-500.0,0.0002391,2]
[313677022,1707574258180,-728.69,0.0002391,2]
[313677023,1707574258191,-500.0,0.0002391,2]
[313677024,1707574258203,-650.93,0.0002391,2]
[313677025,1707574258214,-1766.25,0.0002391,2]
[313677026,1707574258225,-500.0,0.0002391,2]
[313677027,1707574258237,-493.7516794,0.0002391,2]
[313677028,1707574258248,-150.0,0.0002391,2]
[313677029,1707574258259,-500.0,0.0002391,2]
[313677030,1707574258271,-594.57,0.0002391,2]
[313677031,1707574258282,-500.0,0.0002391,2]
[313677032,1707574258294,-500.0,0.0002391,2]
[313677033,1707574258305,-500.0,0.0002391,2]
[313677034,1707574258317,-500.0,0.0002391,2]
[313677035,1707574258328,-500.0,0.0002391,2]
[313677036,1707574258340,-500.0,0.0002391,2]
[313677037,1707574258351,-500.0,0.0002391,2]
[313677038,1707574258363,-530.39,0.0002391,2]
[313677039,1707574258374,-500.0,0.0002391,2]
[313677040,1707574258385,-500.0,0.0002391,2]
[313677041,1707574258396,-500.0,0.0002391,2]
[313677042,1707574258408,-500.0,0.0002391,2]
[313677043,1707574258427,-500.0,0.0002391,2]
[313677044,1707574258443,-3260.3,0.0002391,2]
[313677045,1707574258457,-587.09,0.0002391,2]
[313677046,1707574258471,-1101.01,0.0002391,2]
[313677047,1707574258485,-500.0,0.0002391,2]
[313677048,1707574258499,-1027.58,0.0002391,2]
[313677049,1707574258512,-500.0,0.0002391,2]
[313677050,1707574258525,-500.0,0.0002391,2]
[313677051,1707574258539,-500.0,0.0002391,2]
[313677052,1707574258551,-500.0,0.0002391,2]
[313677053,1707574258564,-500.0,0.0002391,2]
[313677054,1707574258578,-500.0,0.0002391,2]
[313677055,1707574258591,-500.0,0.0002391,2]
[313677056,1707574258606,-500.0,0.0002391,2]
[313677057,1707574258618,-11125.45,0.0002391,2]
[313677058,1707574258629,-500.0,0.0002391,2]
[313677059,1707574258641,-500.0,0.0002391,2]
[313677060,1707574258652,-500.0,0.0002391,2]
[313677061,1707574258664,-2170.27,0.0002391,2]
[313677062,1707574258676,-354.76343863,0.0002391,2]
[313677063,1707574258688,-1482.5,0.0002391,2]
[313677064,1707574258699,-1321.31,0.0002391,2]
[313677065,1707574258711,-1437.89,0.0002391,2]
[313677066,1707574258726,-500.0,0.0002391,2]
[313677067,1707574258738,-500.0,0.0002391,2]
[313677068,1707574258750,-989.82,0.0002391,2]
[313677069,1707574258762,-437.06,0.0002391,2]
[313677070,1707574258774,-597.95,0.0002391,2]
[313677071,1707574258785,-1909.18,0.0002391,2]
[313677072,1707574258797,-500.0,0.0002391,2]
[313677073,1707574258808,-589.61,0.0002391,2]
[313677074,1707574258820,-647.12,0.0002391,2]
[313677075,1707574258833,-998.15,0.0002391,5]
[313677076,1707574258844,-1350.38,0.0002391,2]
[313677077,1707574258856,-2371.12,0.0002391,2]
[313677078,1707574258869,-500.0,0.0002391,2]
[313677079,1707574258882,-1347.24,0.0002391,2]
[313677080,1707574258894,-2054.78,0.0002391,2]
[313677081,1707574258906,-3967.07,0.0002391,2]
[313677082,1707574258918,-1618.29,0.0002391,2]
[313677083,1707574258929,-898.36,0.0002391,2]
[313677084,1707574258941,-1588.29,0.0002391,2]
[313677085,1707574258954,-1247.09,0.0002391,2]
[313677086,1707574258966,-500.0,0.0002391,2]
[313677087,1707574258978,-918.14,0.0002391,2]
[313677088,1707574258989,-2818.91,0.0002391,2]
[313677089,1707574259001,-500.0,0.0002391,2]
[313677090,1707574259012,-2329.93,0.0002391,2]
[313677091,1707574259024,-500.0,0.0002391,2]
[313677092,1707574259035,-1534.72,0.0002391,2]
[313677093,1707574259047,-854.59,0.0002391,2]
[313677094,1707574259059,-500.0,0.0002391,2]
[313677095,1707574259071,-957.2,0.0002391,2]
[313677096,1707574259082,-568.033038,0.0002391,2]
[313677097,1707574259093,-716.28,0.0002391,2]
[313677098,1707574259105,-973.69,0.0002391,2]
[313677099,1707574259116,-5653.82,0.0002391,2]
[313677100,1707574259127,-500.0,0.0002391,2]
[313677101,1707574259139,-1623.83,0.0002391,2]
[313677102,1707574259150,-882.22,0.0002391,2]
[313677103,1707574259162,-500.0,0.0002391,2]
[313677104,1707574259173,-729.82,0.0002391,2]
[313677105,1707574259184,-817.33,0.0002391,2]
[313677106,1707574259195,-500.0,0.0002391,2]
[313677107,1707574259206,-1668.37,0.0002391,2]
[313677108,1707574259217,-1270.18,0.0002391,2]
[313677109,1707574259229,-1505.82,0.0002391,2]
[313677110,1707574259240,-500.0,0.0002391,2]
[313677111,1707574259250,-500.0,0.0002391,2]
[313677112,1707574259262,-500.0,0.0002391,2]
[313677113,1707574259273,-500.0,0.0002391,2]
[313677114,1707574259284,-519.5843072,0.00024,2]
[313677115,1707574259295,-8302.18,0.00024049,2]
[313677116,1707574259306,-1140.33,0.00024049,2]
[313677117,1707574259318,-8411.1,0.00024049,2]
[313677118,1707574259329,-500.0,0.00024049,2]
[313677119,1707574259340,-500.0,0.00024049,2]
[313677120,1707574259351,-2145.73,0.00024049,2]
[313677121,1707574259362,-853.49,0.00024049,2]
[313677122,1707574259373,-7722.57,0.00024049,2]
[313677123,1707574259385,-500.0,0.00024049,2]
[313677124,1707574259396,-500.0,0.00024049,2]
[313677125,1707574259407,-620.92,0.00024049,2]
[313677126,1707574259419,-586.97,0.00024049,2]
[313677127,1707574259429,-500.0,0.00024049,2]
[313677128,1707574259441,-866.64,0.00024049,2]
[313677129,1707574259452,-2510.39923671,0.00024111,2]
[313677130,1707574259463,-500.0,0.00024183,2]
[313677131,1707574259474,-1723.79,0.00024183,2]
[313677132,1707574259486,-1523.13,0.00024183,2]
[313677133,1707574259497,-11523.32,0.00024183,2]
[313677134,1707574259508,-829.36,0.00024183,2]
[313677135,1707574259518,-500.0,0.00024183,2]
[313677136,1707574259529,-6068.79,0.00024183,2]
[313677137,1707574259540,-604.45365533,0.00024183,2]
[313677138,1707574259552,-500.0,0.00024183,2]
[313677139,1707574259563,-500.0,0.00024183,2]
[313677140,1707574259573,-583.83,0.00024183,2]
[313677141,1707574259585,-1103.65,0.00024183,2]
[313677142,1707574259596,-2088.97,0.00024183,2]
[313677143,1707574259608,-4410.53,0.00024183,2]
[313677144,1707574259620,-500.0,0.00024183,2]
[313677145,1707574259631,-2300.86,0.00024183,2]
[313677146,1707574259643,-706.48,0.00024183,2]
[313677147,1707574259654,-500.0,0.00024183,2]
[313677148,1707574259665,-1111.1,0.00024183,2]
[313677149,1707574259675,-500.0,0.00024183,2]
[313677150,1707574259684,-500.0,0.00024183,2]
[313677151,1707574259694,-500.0,0.00024183,2]
[313677152,1707574259703,-4192.44,0.00024183,2]
[313677153,1707574259712,-1461.55,0.00024183,2]
[313677154,1707574259720,-1156.45,0.00024183,2]
[313677155,1707574259730,-500.0,0.00024183,2]
[313677156,1707574259739,-500.0,0.00024183,2]
[313677157,1707574259749,-526.96,0.00024183,2]
[313677158,1707574259759,-4621.17,0.00024183,2]
[313677159,1707574259770,-556.98,0.00024183,2]
[313677160,1707574259779,-500.0,0.00024183,2]
[313677161,1707574259789,-8652.9,0.00024183,2]
[313677162,1707574259798,-500.0,0.00024183,2]
[313677163,1707574259807,-500.0,0.00024183,2]
[313677164,1707574260117,-500.0,0.00024183,2]
[313677165,1707574260147,-500.0,0.00024183,2]
[313677166,1707574260162,-1507.4,0.00024183,2]
[313677167,1707574260172,-1344.82,0.00024183,2]
[313677168,1707574260181,-2326.79,0.00024183,2]
[313677169,1707574260191,-500.0,0.00024183,2]
[313677170,1707574260200,-1393.4,0.00024183,2]
[313677171,1707574260210,-1818.92,0.00024183,2]
[313677172,1707574260219,-674.57,0.00024183,2]
[313677173,1707574260228,-2027.14,0.00024183,2]
[313677174,1707574260237,-500.0,0.00024183,2]
[313677175,1707574260246,-930.03,0.00024183,5]
[313677176,1707574260255,-2829.1,0.00024183,2]
[313677177,1707574260265,-1455.5,0.00024183,2]
[313677178,1707574260275,-500.0,0.00024183,2]
[313677179,1707574260285,-500.0,0.00024183,2]
[313677180,1707574260294,-500.0,0.00024183,2]
[313677181,1707574260303,-500.0,0.00024183,2]
[313677182,1707574260313,-1720.68,0.00024183,2]
[313677183,1707574260321,-555.72,0.00024183,2]
[313677184,1707574260331,-3972.0,0.00024183,2]
[313677185,1707574260340,-2184.99,0.00024183,2]
[313677186,1707574260349,-500.0,0.00024183,2]
[313677187,1707574260358,-1966.35,0.00024183,2]
[313677188,1707574260367,-1817.93,0.00024183,2]
[313677189,1707574260376,-835.04,0.00024183,2]
[313677190,1707574260385,-587.81,0.00024183,2]
[313677191,1707574260394,-3333.4,0.00024183,2]
[313677192,1707574260403,-500.0,0.00024184,2]
[313677193,1707574260412,-500.0,0.00024184,2]
[313677194,1707574260421,-500.0,0.00024184,2]
[313677195,1707574260430,-430.3278033,0.00024184,2]
[313677196,1707574260439,-613.71,0.00024184,2]
[313677197,1707574260448,-500.0,0.00024184,2]
[313677198,1707574260458,-740.88,0.00024184,2]
[313677199,1707574260467,-500.0,0.00024184,2]
[313677200,1707574260475,-500.0,0.00024184,2]
[313677201,1707574260485,-500.0,0.00024184,2]
[313677202,1707574260494,-500.0,0.00024184,2]
[313677203,1707574260503,-500.0,0.00024184,2]
[313677204,1707574260513,-500.0,0.00024184,2]
[313677205,1707574260522,-500.0,0.00024184,2]
[313677206,1707574260531,-500.0,0.00024184,2]
[313677207,1707574260540,-500.0,0.00024184,2]
[313677208,1707574260549,-500.0,0.00024184,7]
[313677209,1707574260559,-500.0,0.00024184,2]
[313677210,1707574260568,-1569.64,0.00024184,2]
[313677211,1707574260577,-500.0,0.00024184,2]
[313677212,1707574260586,-301.66506681,0.00024184,2]
[313677213,1707574260595,-500.0,0.00024184,2]
[313677214,1707574260604,-538.14838176,0.00024184,2]
[313677215,1707574260614,-500.0,0.00024184,2]
[313677216,1707574260623,-690.69,0.00024184,2]
[313677217,1707574260632,-500.0,0.00024184,2]
[313677218,1707574260641,-725.42,0.00024184,2]
[313677219,1707574260650,-500.0,0.00024184,2]
[313677220,1707574260659,-597.38260895,0.00024184,2]
[313677221,1707574260669,-500.0,0.00024184,2]
[313677222,1707574260679,-728.69,0.00024184,2]
[313677223,1707574260688,-500.0,0.00024184,2]
[313677224,1707574260697,-650.93,0.00024184,2]
[313677225,1707574260706,-1766.25,0.00024184,2]
[313677226,1707574260715,-500.0,0.00024184,2]
[313677227,1707574260724,-150.0,0.00024184,2]
[313677228,1707574260733,-500.0,0.00024184,2]
[313677229,1707574260743,-594.57,0.00024184,2]
[313677230,1707574260752,-251.09547486,0.00024184,2]
[313677231,1707574260762,-636.85294052,0.00024184,2]
[313677232,1707574260771,-500.0,0.00024184,2]
[313677233,1707574260780,-500.0,0.00024184,2]
[313677234,1707574260789,-500.0,0.00024184,2]
[313677235,1707574260798,-500.0,0.00024184,2]
[313677236,1707574260807,-500.0,0.00024184,2]
[313677237,1707574260817,-530.39,0.00024184,2]
[313677238,1707574260827,-283.11538876,0.00024184,2]
[313677239,1707574260836,-500.0,0.00024184,2]
[313677240,1707574260846,-440.34882651,0.00024184,2]
[313677241,1707574260856,-500.0,0.00024184,2]
[313677242,1707574260867,-500.0,0.00024184,2]
[313677243,1707574260877,-3260.3,0.00024184,2]
[313677244,1707574260887,-587.09,0.00024184,2]
[313677245,1707574260896,-1101.01,0.00024184,2]
[313677246,1707574260906,-500.0,0.00024184,2]
[313677247,1707574260916,-1027.58,0.00024184,2]
[313677248,1707574260925,-500.0,0.00024184,2]
[313677249,1707574260935,-500.0,0.00024184,2]
[313677250,1707574260945,-500.0,0.00024184,2]
[313677251,1707574260955,-500.0,0.00024184,2]
[313677252,1707574260965,-500.0,0.00024184,2]
[313677253,1707574260974,-500.0,0.00024184,2]
[313677254,1707574260983,-500.0,0.00024184,2]
[313677255,1707574260992,-500.0,0.00024184,2]
[313677256,1707574261002,-11125.45,0.00024184,2]
[313677257,1707574261011,-500.0,0.00024184,2]
[313677258,1707574261021,-500.0,0.00024184,2]
[313677259,1707574261030,-2170.27,0.00024184,2]
[313677260,1707574261039,-1482.5,0.00024184,2]
[313677261,1707574261048,-1321.31,0.00024184,2]
[313677262,1707574261057,-1437.89,0.00024184,2]
[313677263,1707574261067,-500.0,0.00024184,2]
[313677264,1707574261076,-500.0,0.00024184,2]
[313677265,1707574261085,-989.82,0.00024184,2]
[313677266,1707574261094,-597.95,0.00024184,2]
[313677267,1707574261103,-1909.18,0.00024184,2]
[313677268,1707574261112,-500.0,0.00024184,2]
[313677269,1707574261122,-589.61,0.00024184,2]
[313677270,1707574261131,-647.12,0.00024184,2]
[313677271,1707574261141,-998.15,0.00024184,5]
[313677272,1707574261151,-2371.12,0.00024184,2]
[313677273,1707574261160,-500.0,0.00024184,2]
[313677274,1707574261169,-1347.24,0.00024184,2]
[313677275,1707574261178,-2054.78,0.00024184,2]
[313677276,1707574261188,-3967.07,0.00024184,2]
[313677277,1707574261197,-1618.29,0.00024184,2]
[313677278,1707574261207,-898.36,0.00024184,2]
[313677279,1707574261215,-1588.29,0.00024184,2]
[313677280,1707574261224,-1247.09,0.00024184,2]
[313677281,1707574261234,-500.0,0.00024184,2]
[313677282,1707574261243,-918.14,0.00024184,2]
[313677283,1707574261252,-2818.91,0.00024184,2]
[313677284,1707574261261,-500.0,0.00024184,2]
[313677285,1707574261270,-2329.93,0.00024184,2]
[313677286,1707574261279,-500.0,0.00024184,2]
[313677287,1707574261288,-1534.72,0.00024184,2]
[313677288,1707574261297,-854.59,0.00024184,2]
[313677289,1707574261306,-500.0,0.00024184,2]
[313677290,1707574261315,-957.2,0.00024184,2]
[313677291,1707574261324,-716.28,0.00024184,2]
[313677292,1707574261333,-973.69,0.00024184,2]
[313677293,1707574261343,-5653.82,0.00024184,2]
[313677294,1707574261352,-500.0,0.00024184,2]
[313677295,1707574261362,-1623.83,0.00024184,2]
[313677296,1707574261371,-882.22,0.00024184,2]
[313677297,1707574261381,-500.0,0.00024184,2]
[313677298,1707574261391,-729.82,0.00024184,2]
[313677299,1707574261400,-817.33,0.00024184,2]
[313677300,1707574261409,-500.0,0.00024184,2]
[313677301,1707574261418,-1668.37,0.00024184,2]
[313677302,1707574261427,-1270.18,0.00024184,2]
[313677303,1707574261436,-1505.82,0.00024184,2]
[313677304,1707574261445,-500.0,0.00024184,2]
[313677305,1707574261454,-500.0,0.00024184,2]
[313677306,1707574261464,-500.0,0.00024184,2]
[313677307,1707574261474,-500.0,0.00024184,2]
[313677308,1707574261482,-187.78,0.00024241,2]
[313677309,1707574261492,-8302.18,0.00024323,2]
[313677310,1707574261501,-1140.33,0.00024323,2]
[313677311,1707574261510,-8411.1,0.00024323,2]
[313677312,1707574261520,-500.0,0.00024323,2]